bitfinex/quotes_BTCUSD_20250525
["timestamp","ask_amount","ask_price","bid_price","bid_amount"]
[1748133277541,0.14434556,107820.0,107810.0,1.99729856]
[1748133279658,0.14434556,107820.0,107810.0,1.44213856]
[1748133279973,0.14434556,107820.0,107810.0,0.81417856]
[1748133280203,0.14434556,107820.0,107810.0,1.09177856]
[1748133281419,0.14434556,107820.0,107810.0,0.81417856]
[1748133281600,0.14434556,107820.0,107810.0,1.09177856]
[1748133282652,0.14434556,107820.0,107810.0,0.81417856]
[1748133282858,0.14434556,107820.0,107810.0,1.09177856]
[1748133287562,0.14434556,107820.0,107810.0,1.44197856]
[1748133291540,0.14434556,107820.0,107810.0,1.09177856]
[1748133297657,0.14434556,107820.0,107810.0,1.44197856]
[1748133297783,0.14434556,107820.0,107810.0,1.09177856]
[1748133305215,0.14434556,107820.0,107810.0,0.81417856]
[1748133305421,0.14434556,107820.0,107810.0,1.09177856]
[1748133307543,0.14434556,107820.0,107810.0,1.99713856]
[1748133309151,0.14434556,107820.0,107810.0,1.44197856]
[1748133310505,0.44636059,107820.0,107810.0,0.795442]
[1748133310717,0.44636059,107820.0,107810.0,1.073042]
[1748133311178,0.14434556,107820.0,107810.0,1.073042]
[1748133311591,0.14434556,107820.0,107810.0,0.83622885]
[1748133311790,0.14434556,107820.0,107810.0,0.55862885]
[1748133311994,0.14434556,107820.0,107810.0,0.2776]
[1748133312201,0.14434556,107820.0,107810.0,1.127604]
[1748133312758,0.14434556,107820.0,107810.0,1.14606456]
[1748133317684,0.14434556,107820.0,107810.0,2.05122456]
[1748133318383,0.14434556,107820.0,107810.0,1.49606456]
[1748133318589,0.44636059,107820.0,107810.0,1.49606456]
[1748133319946,0.44636059,107820.0,107810.0,1.477604]
[1748133320120,0.44636059,107820.0,107810.0,1.437706]
[1748133320323,0.44636059,107820.0,107810.0,0.810106]
[1748133320465,0.44636059,107820.0,107810.0,0.2776]
[1748133320666,0.44636059,107820.0,107810.0,1.055153]
[1748133320870,0.44636059,107820.0,107810.0,1.05312]
[1748133323462,0.44636059,107820.0,107810.0,1.022196]
[1748133323587,0.44636059,107820.0,107810.0,0.992096]
[1748133324378,0.14434556,107820.0,107810.0,0.992096]
[1748133324585,0.44636059,107820.0,107810.0,0.992096]
[1748133325022,0.14434556,107820.0,107810.0,0.992096]
[1748133325236,0.44636059,107820.0,107810.0,0.992096]
[1748133326545,0.44636059,107820.0,107810.0,0.714496]
[1748133326703,0.44636059,107820.0,107810.0,0.2776]
[1748133326911,0.44636059,107820.0,107810.0,1.023995]
[1748133327575,0.44636059,107820.0,107810.0,1.929155]
[1748133327775,0.44636059,107820.0,107810.0,1.561289]
[1748133327980,0.44636059,107820.0,107790.0,0.3581]
[1748133328183,0.40356059,107820.0,107800.0,0.656129]
[1748133328739,0.0409,107810.0,107800.0,0.656129]
[1748133328954,0.82714556,107810.0,107800.0,0.933729]
[1748133329426,1.49571647,107810.0,107800.0,0.656129]
[1748133329644,0.0409,107800.0,107770.0,0.01098381]
[1748133329849,0.0409,107800.0,107790.0,0.002]
[1748133329850,1.05915588,107800.0,107790.0,0.002]
[1748133330061,0.0409,107780.0,107770.0,0.01098381]
[1748133330275,0.0409,107770.0,107750.0,0.01384505]
[1748133330491,0.0203,107750.0,107730.0,0.03428381]
[1748133330709,0.10984556,107750.0,107740.0,0.933729]
[1748133330916,0.13044556,107750.0,107740.0,0.656129]
[1748133331131,0.12944556,107750.0,107740.0,0.93388035]
[1748133331770,0.12944556,107750.0,107740.0,1.27388035]
[1748133332493,0.12944556,107750.0,107740.0,0.99628035]
[1748133332726,0.13044556,107750.0,107740.0,0.97731435]
[1748133332964,0.12944556,107750.0,107740.0,0.97731435]
[1748133333365,0.13044556,107750.0,107740.0,0.98035435]
[1748133333995,0.13044556,107750.0,107740.0,0.70271435]
[1748133334168,0.13044556,107750.0,107740.0,0.98035435]
[1748133337597,0.13044556,107750.0,107740.0,1.48595435]
[1748133339461,0.13044556,107750.0,107740.0,1.33047435]
[1748133341478,0.82714556,107750.0,107740.0,0.98039435]
[1748133342593,0.82714556,107750.0,107740.0,0.70271435]
[1748133342807,1.12960988,107750.0,107740.0,0.46900535]
[1748133343005,1.12960988,107750.0,107740.0,0.74672535]
[1748133343211,0.82714556,107750.0,107740.0,0.74672535]
[1748133343644,0.82714556,107750.0,107740.0,0.47469935]
[1748133343837,0.82714556,107750.0,107740.0,0.72147935]
[1748133344133,0.82714556,107750.0,107740.0,0.62087135]
[1748133344425,1.12960988,107750.0,107740.0,0.28087135]
[1748133344627,0.82714556,107750.0,107740.0,0.28087135]
[1748133344834,0.82714556,107750.0,107740.0,0.00315135]
[1748133345041,0.82614556,107750.0,107740.0,0.27787135]
[1748133345439,0.82714556,107750.0,107740.0,0.27887135]
[1748133346579,0.82714556,107750.0,107740.0,0.61787135]
[1748133346726,0.82614556,107750.0,107740.0,0.61787135]
[1748133346953,0.83014556,107750.0,107740.0,0.61887135]
[1748133347541,0.83014556,107750.0,107740.0,1.52435135]
[1748133348166,0.83014556,107750.0,107740.0,0.96891135]
[1748133349305,0.83014556,107750.0,107740.0,0.34115135]
[1748133349508,0.83014556,107750.0,107740.0,0.61891135]
[1748133353755,1.13263311,107750.0,107740.0,0.61891135]
[1748133356708,0.83014556,107750.0,107740.0,0.61891135]
[1748133357171,1.13263311,107750.0,107740.0,0.61891135]
[1748133357518,1.13263311,107750.0,107740.0,1.52447135]
[1748133357925,1.13263311,107750.0,107740.0,0.96899135]
[1748133361850,1.13263311,107750.0,107740.0,0.61891135]
[1748133362047,1.13263311,107750.0,107740.0,0.34115135]
[1748133362261,1.13263311,107750.0,107740.0,0.61895135]
[1748133364274,1.53918302,107750.0,107740.0,0.00115135]
[1748133364484,0.77896052,107750.0,107740.0,0.27895135]
[1748133364696,0.47647297,107750.0,107740.0,0.27895135]
[1748133365632,0.48755865,107750.0,107740.0,0.27895135]
[1748133365863,0.48761271,107750.0,107740.0,0.27895135]
[1748133367541,0.48761271,107750.0,107740.0,1.18463135]
[1748133367950,0.48761271,107750.0,107740.0,0.00115135]
[1748133368175,0.48761271,107750.0,107740.0,0.62907135]
[1748133368380,0.48761271,107750.0,107740.0,0.27895135]
[1748133371330,0.17053025,107750.0,107740.0,0.27895135]
[1748133371482,0.17053025,107750.0,107740.0,0.93508035]
[1748133371687,0.14453124,107750.0,107740.0,0.93508035]
[1748133372091,0.13344556,107750.0,107740.0,0.93508035]
[1748133373351,0.13344556,107750.0,107740.0,0.83600135]
[1748133373683,0.13344556,107750.0,107740.0,0.11025935]
[1748133373923,0.43598717,107750.0,107740.0,0.27895135]
[1748133374129,0.45040293,107750.0,107740.0,0.00115135]
[1748133374544,0.45040293,107750.0,107740.0,0.27895135]
[1748133376272,0.14786132,107750.0,107740.0,0.27895135]
[1748133377504,0.14786132,107750.0,107740.0,0.83451135]
[1748133377731,0.14786132,107750.0,107740.0,1.18447135]
[1748133378215,0.14686132,107750.0,107740.0,0.62891135]
[1748133378852,0.15286132,107750.0,107740.0,0.62991135]
[1748133380069,0.15286132,107750.0,107740.0,0.35211135]
[1748133380247,0.15286132,107750.0,107740.0,0.62991135]
[1748133381983,0.45540293,107750.0,107740.0,0.62991135]
[1748133382188,0.45540293,107750.0,107740.0,0.27995135]
[1748133382782,0.45540293,107750.0,107740.0,0.00215135]
[1748133383142,0.45540293,107750.0,107740.0,0.27995135]
[1748133387512,0.45540293,107750.0,107740.0,1.18555135]
[1748133389017,0.46648861,107750.0,107740.0,1.18555135]
[1748133390865,0.46648861,107750.0,107740.0,0.62995135]
[1748133391822,0.46648861,107750.0,107740.0,0.27995135]
[1748133392920,0.46648861,107750.0,107740.0,0.00215135]
[1748133393077,0.46648861,107750.0,107740.0,0.27995135]
[1748133397494,0.46648861,107750.0,107740.0,0.43551135]
[1748133397704,0.46648861,107750.0,107740.0,0.62995135]
[1748133401074,0.46648861,107750.0,107740.0,0.27995135]
[1748133405718,0.46649648,107750.0,107740.0,0.27995135]
[1748133407563,0.46649648,107750.0,107740.0,1.18539135]
[1748133408899,0.46649648,107750.0,107740.0,0.62979135]
[1748133410684,0.84792514,107750.0,107740.0,0.00215135]
[1748133410870,0.86009139,107750.0,107740.0,0.00215135]
[1748133411195,1.51156777,107750.0,107740.0,0.00215135]
[1748133411404,1.51156777,107750.0,107690.0,0.01098381]
[1748133411405,0.0391,107700.0,107690.0,0.01098381]
[1748133411609,0.0391,107700.0,107690.0,0.2778]
[1748133411610,0.10934556,107700.0,107690.0,0.2778]
[1748133411856,0.10934556,107700.0,107690.0,0.27830511]
[1748133412037,0.10834556,107700.0,107690.0,0.27830511]
[1748133413009,0.10934556,107700.0,107690.0,0.27830511]
[1748133413402,0.11234556,107700.0,107690.0,0.27830511]
[1748133414861,0.11234556,107700.0,107690.0,0.27834511]
[1748133415062,0.80904556,107700.0,107690.0,0.27834511]
[1748133415269,0.84418641,107700.0,107690.0,0.00050511]
[1748133415481,0.82358641,107700.0,107690.0,0.27834511]
[1748133417499,0.82358641,107700.0,107690.0,0.43394511]
[1748133417712,0.82358641,107700.0,107690.0,0.62826511]
[1748133418245,0.84458641,107700.0,107690.0,0.62826511]
[1748133419519,0.84458641,107700.0,107690.0,0.27834511]
[1748133420116,0.84458641,107700.0,107640.0,0.0739269]
[1748133420330,0.84458641,107700.0,107680.0,0.34]
[1748133420331,0.78624556,107690.0,107680.0,0.34]
[1748133420551,0.78624556,107690.0,107680.0,0.996129]
[1748133421399,0.78624556,107690.0,107680.0,1.274009]
[1748133421811,0.78724556,107690.0,107680.0,1.274009]
[1748133423277,0.78724556,107690.0,107680.0,1.31836357]
[1748133423488,0.6977,107690.0,107680.0,1.31836357]
[1748133423703,0.6987,107690.0,107680.0,1.31836357]
[1748133423913,0.6987,107690.0,107680.0,1.29785922]
[1748133424129,0.6987,107690.0,107680.0,1.40250049]
[1748133424342,0.002,107690.0,107680.0,1.42300484]
[1748133424770,0.6967,107730.0,107680.0,1.15644569]
[1748133424976,0.08954556,107730.0,107690.0,0.74567456]
[1748133425187,0.08954556,107730.0,107700.0,0.934049]
[1748133425390,0.08954556,107730.0,107710.0,0.65844957]
[1748133425593,0.08954556,107730.0,107720.0,0.93636957]
[1748133425799,0.08954556,107730.0,107720.0,0.934049]
[1748133426004,0.09054556,107730.0,107720.0,0.934049]
[1748133426209,0.08954556,107730.0,107720.0,0.934049]
[1748133426720,0.09054556,107730.0,107720.0,0.934049]
[1748133426958,0.09054556,107730.0,107720.0,0.93409943]
[1748133427319,0.09254556,107730.0,107720.0,1.27409943]
[1748133427518,0.09254556,107730.0,107720.0,2.17973943]
[1748133427728,0.09154556,107730.0,107720.0,2.17973943]
[1748133428049,0.006,107730.0,107720.0,1.62501943]
[1748133428252,0.006,107730.0,107720.0,1.27509943]
[1748133431624,0.006,107730.0,107720.0,1.29784965]
[1748133431835,0.006,107730.0,107720.0,1.38739521]
[1748133432267,0.002,107730.0,107720.0,1.40093606]
[1748133432425,0.0300929,107780.0,107720.0,1.06093606]
[1748133432633,0.08954556,107770.0,107730.0,0.74567456]
[1748133432857,0.08954556,107770.0,107740.0,0.933969]
[1748133433028,0.08954556,107770.0,107750.0,0.656129]
[1748133433359,0.0936269,107790.0,107760.0,0.28015972]
[1748133433360,0.0387,107790.0,107760.0,0.28015972]
[1748133433516,0.12824556,107790.0,107770.0,0.656129]
[1748133433907,0.08954556,107790.0,107780.0,0.27784]
[1748133434108,0.08954556,107790.0,107780.0,0.933969]
[1748133434236,0.08954556,107790.0,107780.0,1.273969]
[1748133434667,0.08954556,107790.0,107780.0,1.27401943]
[1748133435023,0.09354556,107790.0,107780.0,1.27401943]
[1748133435247,0.08954556,107790.0,107780.0,1.27401943]
[1748133435458,0.09554556,107790.0,107780.0,1.27501943]
[1748133436013,0.09654556,107790.0,107780.0,1.27501943]
[1748133436414,0.09554556,107790.0,107780.0,1.27501943]
[1748133436839,0.09954556,107790.0,107780.0,1.27601943]
[1748133437593,0.09954556,107790.0,107780.0,2.18121943]
[1748133438235,0.09954556,107790.0,107780.0,1.62565943]
[1748133439624,0.12024556,107790.0,107780.0,1.62565943]
[1748133440232,0.12024556,107790.0,107780.0,1.27601943]
[1748133440550,0.44392561,107790.0,107780.0,0.27981043]
[1748133440855,0.53239336,107790.0,107780.0,0.27981043]
[1748133441058,0.53239336,107790.0,107780.0,0.00205043]
[1748133441346,0.53239336,107790.0,107780.0,0.27981043]
[1748133441573,0.53239336,107790.0,107780.0,0.00205043]
[1748133441774,0.89517341,107790.0,107780.0,0.27977043]
[1748133442278,0.0416,107750.0,107730.0,0.01363204]
[1748133442483,0.13114556,107750.0,107740.0,0.34]
[1748133442691,0.13096144,107750.0,107740.0,0.996129]
[1748133442894,0.13096144,107750.0,107740.0,0.656129]
[1748133443047,0.13096144,107750.0,107740.0,0.34]
[1748133443265,0.12996144,107750.0,107740.0,1.273849]
[1748133444213,0.12996144,107750.0,107740.0,0.996129]
[1748133444423,0.12996144,107750.0,107740.0,0.975852]
[1748133444623,0.12896144,107750.0,107740.0,0.975852]
[1748133445219,0.12996144,107750.0,107740.0,0.976852]
[1748133445426,0.12996144,107750.0,107740.0,0.975852]
[1748133445747,0.12996144,107750.0,107740.0,0.976852]
[1748133445995,0.13096144,107750.0,107740.0,0.976852]
[1748133446215,0.002,107750.0,107740.0,0.976852]
[1748133446432,0.11094556,107750.0,107740.0,0.699132]
[1748133446642,0.11094556,107750.0,107740.0,0.27872]
[1748133446643,0.42826646,107750.0,107740.0,0.27872]
[1748133446848,0.43026646,107750.0,107740.0,0.002]
[1748133447109,0.43026646,107750.0,107740.0,0.27976]
[1748133447534,0.45116646,107750.0,107740.0,1.1848]
[1748133448151,0.44816646,107750.0,107740.0,0.3506]
[1748133448354,0.45216646,107750.0,107740.0,0.62936]
[1748133448563,0.45716646,107750.0,107740.0,0.002]
[1748133448766,0.46716646,107750.0,107740.0,0.27976]
[1748133449149,0.46616646,107750.0,107740.0,0.001]
[1748133449383,0.46616646,107750.0,107740.0,0.27876]
[1748133449584,0.46016646,107750.0,107740.0,0.27976]
[1748133450039,0.10808641,107750.0,107700.0,0.09667712]
[1748133450246,0.82654556,107740.0,107710.0,0.65860102]
[1748133450420,0.82554556,107740.0,107720.0,0.656129]
[1748133450988,0.6967,107740.0,107730.0,0.00232043]
[1748133451191,0.001,107750.0,107730.0,0.933889]
[1748133451541,0.0194,107760.0,107740.0,0.656129]
[1748133451744,0.10894556,107760.0,107740.0,0.656129]
[1748133453211,0.13384556,107760.0,107740.0,0.657129]
[1748133453434,0.13384556,107760.0,107750.0,0.933889]
[1748133453842,0.13784556,107760.0,107750.0,0.933889]
[1748133454346,0.13384556,107760.0,107750.0,0.933889]
[1748133454546,0.13984556,107760.0,107750.0,0.933889]
[1748133455345,0.13984556,107760.0,107750.0,0.656129]
[1748133455548,0.11408641,107760.0,107750.0,0.27776]
[1748133455752,0.12008641,107760.0,107750.0,0.001]
[1748133455952,0.42246935,107760.0,107750.0,0.27876]
[1748133456106,0.46276935,107760.0,107750.0,0.27876]
[1748133457543,0.46276935,107760.0,107750.0,1.18388]
[1748133457907,0.16038641,107760.0,107750.0,0.6284]
[1748133458287,0.16038641,107760.0,107750.0,0.001]
[1748133458502,0.16038641,107760.0,107750.0,0.27876]
[1748133459297,0.16038641,107760.0,107750.0,0.001]
[1748133459499,0.16038641,107760.0,107750.0,0.27876]
[1748133464252,0.16038641,107760.0,107750.0,0.001]
[1748133464558,0.16038641,107760.0,107750.0,0.27876]
[1748133466641,0.16538641,107760.0,107750.0,0.001]
[1748133466825,0.46776935,107760.0,107750.0,0.2788]
[1748133466953,0.4936555,107760.0,107750.0,0.2788]
[1748133467162,0.46776935,107760.0,107750.0,0.2788]
[1748133467368,0.49365344,107760.0,107750.0,0.2788]
[1748133467604,0.16538641,107760.0,107750.0,1.02844]
[1748133468366,0.17647931,107760.0,107750.0,1.02844]
[1748133469320,0.19126984,107760.0,107750.0,1.02844]
[1748133469659,0.19126984,107760.0,107750.0,0.2788]
[1748133470497,0.18017694,107760.0,107750.0,0.2788]
[1748133471225,0.20608219,107760.0,107750.0,0.001]
[1748133471427,0.18017694,107760.0,107750.0,0.2788]
[1748133472271,0.2060929,107760.0,107750.0,0.2788]
[1748133472913,0.18017694,107760.0,107750.0,0.001]
[1748133473138,0.18017694,107760.0,107750.0,0.2788]
[1748133473288,0.19125893,107760.0,107750.0,0.2788]
[1748133473501,0.17171808,107760.0,107750.0,0.2788]
[1748133473931,0.15081808,107760.0,107750.0,0.2788]
[1748133474302,0.13141808,107760.0,107750.0,0.2788]
[1748133474713,0.10554556,107760.0,107750.0,0.934929]
[1748133476747,0.016,107760.0,107750.0,0.934929]
[1748133477474,0.14584556,107760.0,107750.0,0.784]
[1748133477687,0.14584556,107760.0,107750.0,0.906468]
[1748133478420,0.14584556,107760.0,107750.0,0.401268]
[1748133479374,0.10554556,107760.0,107750.0,0.401268]
[1748133482455,0.016,107760.0,107750.0,0.405968]
[1748133483197,0.006,107760.0,107750.0,0.405968]
[1748133483420,0.006,107760.0,107720.0,0.01454085]
[1748133483638,0.01,107760.0,107730.0,0.62320656]
[1748133483869,0.01,107760.0,107740.0,0.533661]
[1748133484068,0.01,107760.0,107750.0,0.34]
[1748133484280,0.004,107760.0,107750.0,0.873661]
[1748133484497,0.005,107760.0,107750.0,0.874661]
[1748133484810,0.005,107760.0,107750.0,1.152421]
[1748133485042,0.00466,107760.0,107750.0,1.152421]
[1748133485242,0.00566,107760.0,107750.0,1.152421]
[1748133486127,0.05596,107760.0,107750.0,0.874661]
[1748133486322,0.13550556,107760.0,107750.0,0.121464]
[1748133486555,0.13450556,107760.0,107750.0,0.399224]
[1748133486729,0.13950556,107760.0,107750.0,0.400224]
[1748133487732,0.13950556,107760.0,107750.0,1.305304]
[1748133488329,0.13950556,107760.0,107750.0,0.749824]
[1748133490357,0.13950556,107760.0,107750.0,0.400224]
[1748133493461,1.15312935,107760.0,107750.0,0.122464]
[1748133493676,1.15331736,107760.0,107750.0,0.27976]
[1748133493882,0.85074641,107760.0,107750.0,0.27976]
[1748133494090,1.15331736,107760.0,107750.0,0.27976]
[1748133494438,1.16439935,107760.0,107750.0,0.27976]
[1748133494648,0.8618284,107760.0,107750.0,0.27976]
[1748133494853,0.8571684,107760.0,107750.0,0.27876]
[1748133495055,0.8521684,107760.0,107750.0,0.27776]
[1748133495314,0.8591684,107760.0,107750.0,0.27876]
[1748133496279,0.8641684,107760.0,107750.0,0.27876]
[1748133496892,0.8641684,107760.0,107750.0,0.001]
[1748133497115,0.8641684,107760.0,107750.0,0.27876]
[1748133497496,0.8641684,107760.0,107750.0,1.18384]
[1748133498357,0.8641684,107760.0,107750.0,0.001]
[1748133498555,0.8641684,107760.0,107750.0,0.6284]
[1748133500564,0.8641684,107760.0,107750.0,0.27876]
[1748133502319,0.8641684,107760.0,107750.0,0.001]
[1748133502525,1.16663531,107760.0,107750.0,0.2788]
[1748133503320,0.48472584,107760.0,107750.0,0.2788]
[1748133503515,0.05,107710.0,107670.0,0.01454085]
[1748133503716,0.05,107710.0,107700.0,0.00015143]
[1748133503917,0.05,107710.0,107700.0,0.62335799]
[1748133504659,0.051,107710.0,107700.0,0.62335799]
[1748133504884,0.051,107710.0,107700.0,0.90115799]
[1748133505244,0.05,107710.0,107700.0,1.24115799]
[1748133505462,0.051,107710.0,107700.0,1.24415799]
[1748133505817,0.052,107710.0,107700.0,1.24415799]
[1748133507514,0.052,107710.0,107700.0,2.14935799]
[1748133508110,0.052,107710.0,107700.0,1.99379799]
[1748133508274,0.052,107710.0,107700.0,1.59379799]
[1748133509752,0.052,107710.0,107700.0,1.15461243]
[1748133510854,0.052,107710.0,107700.0,1.24415799]
[1748133511265,0.052,107710.0,107700.0,1.24515799]
[1748133511465,0.002,107710.0,107700.0,1.24515799]
[1748133514954,0.052,107710.0,107700.0,0.96735799]
[1748133515404,0.0892,107710.0,107700.0,0.87781243]
[1748133515627,0.0392,107710.0,107700.0,1.15561243]
[1748133515834,0.0892,107710.0,107700.0,1.15561243]
[1748133517527,0.0892,107710.0,107700.0,2.06081243]
[1748133517735,0.0892,107710.0,107700.0,1.50525243]
[1748133519719,0.0892,107710.0,107700.0,1.15561243]
[1748133521281,0.0392,107710.0,107700.0,1.15561243]
[1748133521444,0.0892,107710.0,107700.0,1.15561243]
[1748133526443,0.0892,107710.0,107700.0,0.87781243]
[1748133526681,0.0892,107710.0,107700.0,1.15561243]
[1748133527492,0.0892,107710.0,107700.0,1.31117243]
[1748133527617,0.0892,107710.0,107700.0,2.06089243]
[1748133529582,0.0892,107710.0,107700.0,2.09940255]
[1748133530087,0.0892,107710.0,107700.0,0.91632255]
[1748133530295,0.0392,107710.0,107700.0,0.43549955]
[1748133531125,0.0382,107710.0,107700.0,0.43549955]
[1748133531334,0.0372,107710.0,107700.0,0.43249955]
[1748133531657,0.0392,107710.0,107700.0,0.43449955]
[1748133533080,0.05,107690.0,107670.0,0.1]
[1748133533360,0.05,107690.0,107680.0,0.50816856]
[1748133533541,0.05,107690.0,107680.0,0.84816856]
[1748133534262,0.05,107690.0,107680.0,1.12600856]
[1748133534612,0.051,107690.0,107680.0,1.12600856]
[1748133535223,0.052,107690.0,107680.0,1.12800856]
[1748133536810,0.05,107700.0,107690.0,0.34]
[1748133537018,0.05,107710.0,107690.0,0.78600856]
[1748133537223,0.03819425,107710.0,107700.0,0.50816856]
[1748133537619,0.03819425,107720.0,107700.0,1.41336856]
[1748133537925,0.03819425,107710.0,107700.0,0.43914556]
[1748133538147,0.03819425,107710.0,107700.0,0.78600856]
[1748133538323,0.03819425,107720.0,107700.0,0.78600856]
[1748133538553,0.03819425,107730.0,107710.0,0.42094343]
[1748133538704,0.03819425,107720.0,107710.0,0.08954556]
[1748133538905,0.03819425,107720.0,107710.0,0.78600856]
[1748133540558,0.03819425,107720.0,107710.0,0.84816856]
[1748133540759,0.03819425,107720.0,107710.0,1.12696856]
[1748133541110,0.03919425,107720.0,107710.0,1.12696856]
[1748133541311,0.001,107720.0,107710.0,1.12696856]
[1748133541513,0.08109425,107720.0,107710.0,1.12796856]
[1748133541722,0.08109425,107720.0,107710.0,1.038423]
[1748133545885,0.08109425,107720.0,107710.0,0.875038]
[1748133547536,0.08109425,107720.0,107710.0,1.780158]
[1748133549741,0.08109425,107720.0,107710.0,0.875038]
[1748133554777,0.0529,107720.0,107710.0,0.257238]
[1748133555009,0.0429,107720.0,107710.0,0.535038]
[1748133556713,0.20637246,107720.0,107710.0,0.257238]
[1748133556906,0.20627839,107720.0,107710.0,0.535038]
[1748133557573,0.20627839,107720.0,107710.0,1.440158]
[1748133558771,0.20527839,107720.0,107710.0,0.596238]
[1748133558982,0.20527839,107720.0,107710.0,0.62824]
[1748133559201,0.20627839,107720.0,107710.0,0.62824]
[1748133559931,0.20627839,107720.0,107710.0,0.001]
[1748133560093,0.20537246,107720.0,107710.0,0.2778]
[1748133560293,0.20737246,107720.0,107710.0,0.533038]
[1748133560535,0.21037246,107720.0,107710.0,0.533038]
[1748133561152,0.21037246,107720.0,107710.0,0.593038]
[1748133561943,0.13644556,107720.0,107710.0,0.593038]
[1748133562457,0.13644556,107720.0,107710.0,0.33784]
[1748133563156,0.52946513,107720.0,107710.0,0.0195]
[1748133563356,0.0497,107680.0,107670.0,0.03800984]
[1748133563580,0.0497,107680.0,107670.0,0.57159096]
[1748133563807,0.0497,107680.0,107670.0,0.53358112]
[1748133564686,0.13024556,107680.0,107670.0,0.53358112]
[1748133565316,0.13024556,107680.0,107670.0,0.87358112]
[1748133566624,0.13124556,107680.0,107670.0,0.91092367]
[1748133567689,0.13124556,107680.0,107670.0,1.81616367]
[1748133570653,0.13124556,107680.0,107670.0,0.91096367]
[1748133571737,0.0417,107680.0,107670.0,0.91096367]
[1748133571934,0.002,107680.0,107670.0,0.97013091]
[1748133572176,0.04019425,107680.0,107670.0,1.05787212]
[1748133572497,0.002,107680.0,107670.0,1.03650923]
[1748133572848,0.04019425,107680.0,107670.0,1.03650923]
[1748133573053,0.04019425,107680.0,107670.0,1.05787212]
[1748133573054,0.002,107680.0,107670.0,1.05787212]
[1748133577498,0.002,107680.0,107670.0,1.96319212]
[1748133578237,0.002,107680.0,107670.0,1.94182923]
[1748133579101,0.002,107680.0,107670.0,1.50834923]
[1748133579290,0.002,107680.0,107670.0,1.75022923]
[1748133580283,0.002,107680.0,107670.0,1.76852923]
[1748133580698,0.002,107680.0,107670.0,1.03750923]
[1748133587541,0.002,107680.0,107670.0,1.94274923]
[1748133590302,0.002,107680.0,107670.0,1.90540668]
[1748133590838,0.002,107680.0,107670.0,1.00016668]
[1748133592694,0.002,107680.0,107670.0,0.96316668]
[1748133592895,0.0427,107680.0,107670.0,0.96316668]
[1748133593881,0.08089425,107680.0,107670.0,0.96316668]
[1748133594129,0.08089425,107680.0,107670.0,0.34528668]
[1748133594342,0.0427,107680.0,107670.0,0.53362112]
[1748133594546,0.0427,107680.0,107670.0,0.87362112]
[1748133597553,0.0427,107680.0,107670.0,1.77878112]
[1748133597958,0.0427,107680.0,107670.0,1.22306112]
[1748133600453,0.0427,107680.0,107670.0,0.87362112]
[1748133601309,0.0427,107680.0,107670.0,0.59574112]
[1748133601511,0.0427,107680.0,107670.0,0.87362112]
[1748133602451,0.0427,107680.0,107670.0,0.59574112]
[1748133602859,0.0427,107680.0,107670.0,0.87362112]
[1748133603060,0.0427,107680.0,107670.0,0.59574112]
[1748133603295,0.0527,107680.0,107670.0,0.59574112]
[1748133603487,0.0527,107680.0,107670.0,0.87362112]
[1748133604105,0.0527,107680.0,107670.0,0.53362112]
[1748133604106,0.20617246,107680.0,107670.0,0.53362112]
[1748133604761,0.20617246,107680.0,107670.0,0.12765412]
[1748133605165,0.20617246,107680.0,107670.0,0.27838312]
[1748133605337,0.07819425,107640.0,107630.0,0.01473786]
[1748133605503,0.07819425,107640.0,107630.0,0.35967232]
[1748133605718,0.07819425,107640.0,107630.0,0.27012676]
[1748133606165,0.07819425,107640.0,107630.0,0.2553889]
[1748133606402,0.05,107640.0,107630.0,0.26928531]
[1748133606608,0.051,107640.0,107630.0,0.54720531]
[1748133607042,0.041,107640.0,107630.0,0.54720531]
[1748133607457,0.05,107640.0,107630.0,1.23668531]
[1748133607669,0.05,107640.0,107630.0,1.25723929]
[1748133607670,0.04,107640.0,107630.0,1.25723929]
[1748133607869,0.07819425,107640.0,107630.0,0.90775929]
[1748133608303,0.04,107640.0,107630.0,0.90775929]
[1748133608552,0.04,107640.0,107630.0,0.88720531]
[1748133608755,0.041,107640.0,107630.0,0.88720531]
[1748133608956,0.042,107640.0,107630.0,0.88720531]
[1748133609169,0.07819425,107640.0,107630.0,0.88720531]
[1748133609381,0.04,107640.0,107630.0,0.88720531]
[1748133609583,0.044,107640.0,107630.0,0.88720531]
[1748133609983,0.04219425,107640.0,107630.0,0.88724531]
[1748133610638,0.004,107640.0,107630.0,0.97679087]
[1748133610858,0.04219425,107640.0,107630.0,0.97679087]
[1748133611086,0.04219425,107640.0,107630.0,0.69883087]
[1748133611291,0.04219425,107640.0,107630.0,0.97679087]
[1748133613015,0.04219425,107640.0,107630.0,0.69883087]
[1748133613223,0.06289425,107640.0,107630.0,0.97679087]
[1748133614904,0.06289425,107640.0,107630.0,0.69883087]
[1748133615059,0.08329425,107640.0,107630.0,0.97679087]
[1748133615484,0.08329425,107640.0,107630.0,0.35883087]
[1748133615682,0.0551,107640.0,107630.0,0.54724531]
[1748133617645,0.0551,107640.0,107630.0,1.45264531]
[1748133617777,0.0551,107640.0,107630.0,0.89676531]
[1748133619174,0.0551,107640.0,107630.0,1.23676531]
[1748133619375,0.05427804,107640.0,107630.0,0.71134726]
[1748133619587,0.05427804,107640.0,107630.0,0.63978726]
[1748133620542,0.05427804,107640.0,107630.0,0.36182726]
[1748133620721,0.04427804,107640.0,107630.0,0.34]
[1748133620921,0.04427804,107640.0,107630.0,0.7564]
[1748133622056,0.04427804,107640.0,107630.0,0.718474]
[1748133622256,0.04427804,107640.0,107630.0,0.77881]
[1748133622459,0.04427804,107640.0,107630.0,0.719062]
[1748133626649,0.05427804,107640.0,107630.0,0.719062]
[1748133627467,0.05427804,107640.0,107630.0,1.630622]
[1748133627662,0.05427804,107640.0,107630.0,1.290622]
[1748133628318,0.04427804,107640.0,107630.0,0.734622]
[1748133628523,0.05427804,107640.0,107630.0,0.734622]
[1748133630230,0.05427804,107640.0,107630.0,0.379062]
[1748133632860,0.05427804,107640.0,107630.0,0.441062]
[1748133633023,0.05427804,107640.0,107620.0,0.05111837]
[1748133633024,0.01,107630.0,107620.0,0.05111837]
[1748133633239,0.0496,107630.0,107620.0,0.67743047]
[1748133633532,0.0496,107630.0,107620.0,1.25296147]
[1748133633758,0.0496,107630.0,107620.0,1.59993647]
[1748133634086,0.0496,107630.0,107620.0,1.61061831]
[1748133634292,0.0496,107630.0,107620.0,1.23109031]
[1748133634504,0.0496,107630.0,107620.0,0.03779231]